fUSD/lending_fUSD_20241230
["ID","MTS","AMOUNT","RATE_DAILY","PERIOD"]
[347174906,1735547439680,-500.0,0.00014498,2]
[347174907,1735547439689,-500.0,0.00014498,2]
[347174908,1735547439699,-500.0,0.00014498,2]
[347174909,1735547439708,-500.0,0.00014498,2]
[347174910,1735547439717,-500.0,0.00014498,2]
[347174911,1735547439726,-500.0,0.00014498,2]
[347174912,1735547439740,-184.10305572,0.00014498,2]
[347174913,1735547439749,-500.0,0.00014498,2]
[347174914,1735547439758,-500.0,0.00014498,2]
[347174915,1735547439768,-500.0,0.00014498,2]
[347174916,1735547439776,-817.54,0.00014498,2]
[347174917,1735547439786,-500.0,0.00014498,2]
[347174918,1735547439795,-500.0,0.00014498,2]
[347174919,1735547439804,-500.0,0.00014498,2]
[347174920,1735547439815,-500.0,0.00014498,2]
[347174921,1735547439824,-500.0,0.00014498,2]
[347174922,1735547439834,-500.0,0.00014498,2]
[347174923,1735547439844,-500.0,0.00014498,2]
[347174924,1735547439853,-500.0,0.00014498,2]
[347174925,1735547439862,-500.0,0.00014498,2]
[347174926,1735547439871,-500.0,0.00014498,2]
[347174927,1735547439880,-504.86090933,0.00014498,2]
[347174928,1735547439889,-500.0,0.00014498,2]
[347174929,1735547439898,-500.0,0.00014498,2]
[347174930,1735547439907,-500.0,0.00014498,2]
[347174931,1735547439916,-4444.123017,0.00014498,2]
[347174932,1735547439925,-500.0,0.00014498,2]
[347174933,1735547439934,-500.0,0.00014498,2]
[347174934,1735547439943,-500.0,0.00014498,2]
[347174935,1735547439952,-4444.123017,0.00014498,3]
[347174936,1735547439961,-4444.123017,0.00014498,4]
[347174937,1735547439970,-333.71040914,0.00014498,2]
[347174938,1735547439979,-544.01,0.00014498,2]
[347174939,1735547439988,-500.0,0.00014498,2]
[347174940,1735547439997,-500.0,0.00014498,2]
[347174941,1735547440007,-500.0,0.00014498,2]
[347174942,1735547440016,-500.0,0.00014498,2]
[347174943,1735547440025,-568.80389687,0.00014498,2]
[347174944,1735547440034,-500.0,0.00014498,2]
[347174945,1735547440043,-652.54,0.00014498,2]
[347174946,1735547440052,-500.0,0.00014498,2]
[347174947,1735547440061,-502.66464962,0.00014498,2]
[347174948,1735547440070,-500.0,0.00014498,2]
[347174949,1735547440079,-507.76963508,0.00014498,2]
[347174950,1735547440087,-500.0,0.00014498,2]
[347174951,1735547440096,-500.0,0.00014498,2]
[347174952,1735547440106,-726.44,0.00014498,2]
[347174953,1735547440116,-500.0,0.00014498,2]
[347174954,1735547440126,-500.0,0.00014498,2]
[347174955,1735547440135,-640.28,0.00014498,2]
[347174956,1735547440145,-500.0,0.00014498,2]
[347174957,1735547440153,-500.0,0.00014498,2]
[347174958,1735547440163,-500.0,0.00014498,2]
[347174959,1735547440172,-500.0,0.00014498,2]
[347174960,1735547440181,-500.0,0.00014498,2]
[347174961,1735547440190,-500.0,0.00014498,2]
[347174962,1735547440199,-260.07416946,0.00014498,2]
[347174963,1735547440208,-500.0,0.00014498,2]
[347174964,1735547440219,-193.10001496,0.00014498,2]
[347174965,1735547440228,-611.45,0.00014498,2]
[347174966,1735547440238,-500.0,0.00014498,2]
[347174967,1735547440247,-500.0,0.00014498,2]
[347174968,1735547440256,-500.0,0.00014498,2]
[347174969,1735547440266,-502.93513282,0.00014498,2]
[347174970,1735547440275,-500.0,0.00014498,2]
[347174971,1735547440284,-700.33,0.00014498,2]
[347174972,1735547440293,-500.0,0.00014498,2]
[347174973,1735547440302,-500.0,0.00014498,2]
[347174974,1735547440312,-644.75,0.00014498,2]
[347174975,1735547440321,-500.0,0.00014498,2]
[347174976,1735547440330,-500.0,0.00014498,2]
[347174977,1735547440339,-693.2,0.00014498,2]
[347174978,1735547440348,-500.0,0.00014498,2]
[347174979,1735547440357,-500.0,0.00014498,2]
[347174980,1735547440369,-500.0,0.00014498,2]
[347174981,1735547440378,-503.51361489,0.00014498,2]
[347174982,1735547440387,-301.48927211,0.00014498,2]
[347174983,1735547440396,-390.16640147,0.00014498,2]
[347174984,1735547440406,-500.0,0.00014498,2]
[347174985,1735547440416,-703.65,0.00014498,2]
[347174986,1735547440425,-500.94813009,0.00014498,2]
[347174987,1735547440435,-500.0,0.00014498,2]
[347174988,1735547440444,-500.0,0.00014498,2]
[347174989,1735547440453,-500.0,0.00014498,2]
[347174990,1735547440462,-500.0,0.00014498,2]
[347174991,1735547440471,-500.0,0.00014498,2]
[347174992,1735547440480,-500.0,0.00014498,2]
[347174993,1735547440490,-500.0,0.00014498,2]
[347174994,1735547440499,-500.0,0.00014498,2]
[347174995,1735547440508,-500.0,0.00014498,2]
[347174996,1735547440517,-500.0,0.00014498,2]
[347174997,1735547440526,-862.63,0.00014498,2]
[347174998,1735547440535,-500.0,0.00014498,2]
[347174999,1735547440545,-500.0,0.00014498,2]
[347175000,1735547440554,-500.0,0.00014498,2]
[347175001,1735547440563,-767.63,0.00014498,2]
[347175002,1735547440572,-1977.74,0.00014498,2]
[347175003,1735547440582,-507.44332357,0.00014498,2]
[347175004,1735547440591,-500.0,0.00014498,2]
[347175005,1735547440600,-2232.64,0.00014498,2]
[347175006,1735547440609,-500.0,0.00014498,2]
[347175007,1735547440620,-2283.61,0.00014498,2]
[347175008,1735547440630,-694.49,0.00014498,2]
[347175009,1735547440639,-1948.58,0.00014498,2]
[347175010,1735547440648,-500.0,0.00014498,2]
[347175011,1735547440658,-2775.6,0.00014498,2]
[347175012,1735547440667,-829.34,0.00014498,2]
[347175013,1735547440676,-500.0,0.00014498,2]
[347175014,1735547440685,-1788.96,0.00014498,2]
[347175015,1735547440694,-500.0,0.00014498,2]
[347175016,1735547440703,-360.55719541,0.00014498,2]
[347175017,1735547440712,-500.0,0.00014498,2]
[347175018,1735547440722,-4933.15,0.00014498,2]
[347175019,1735547440732,-500.0,0.00014498,2]
[347175020,1735547440744,-1840.21,0.00014498,2]
[347175021,1735547440753,-500.0,0.00014498,2]
[347175022,1735547440762,-500.0,0.00014498,2]
[347175023,1735547440772,-1643.19,0.00014498,2]
[347175024,1735547440782,-500.0,0.00014498,2]
[347175025,1735547440791,-500.0,0.00014498,2]
[347175026,1735547440801,-729.04,0.00014498,2]
[347175027,1735547440811,-606.75,0.00014498,2]
[347175028,1735547440821,-500.0,0.00014498,2]
[347175029,1735547440831,-668.04,0.00014498,2]
[347175030,1735547440840,-500.0,0.00014498,2]
[347175031,1735547440850,-3069.54,0.00014498,2]
[347175032,1735547440859,-500.0,0.00014498,2]
[347175033,1735547440870,-500.0,0.00014498,2]
[347175034,1735547440880,-2252.54,0.00014498,2]
[347175035,1735547440890,-500.0,0.00014498,2]
[347175036,1735547440899,-569.5,0.00014498,2]
[347175037,1735547440909,-2208.46,0.00014498,2]
[347175038,1735547440918,-1738.77,0.00014498,2]
[347175039,1735547440928,-560.12,0.00014498,2]
[347175040,1735547440937,-928.6,0.00014498,2]
[347175041,1735547440947,-500.0,0.00014498,2]
[347175042,1735547440957,-1000.0,0.00014498,2]
[347175043,1735547440966,-1349.95,0.00014498,2]
[347175044,1735547440976,-500.0,0.00014498,2]
[347175045,1735547440986,-1677.65,0.00014498,2]
[347175046,1735547440995,-500.0,0.00014498,2]
[347175047,1735547441005,-1597.32,0.00014498,2]
[347175048,1735547441130,-500.0,0.00014498,2]
[347175049,1735547441139,-500.0,0.00014498,2]
[347175050,1735547441149,-1868.35,0.00014498,2]
[347175051,1735547441159,-500.0,0.00014498,2]
[347175052,1735547441168,-180.3529549,0.00014499,2]
[347175053,1735547441178,-500.0,0.00014499,2]
[347175054,1735547441187,-830.69,0.00014499,2]
[347175055,1735547441197,-663.44,0.00014499,2]
[347175056,1735547441207,-484.52117983,0.00014499,2]
[347175057,1735547441216,-500.0,0.00014499,2]
[347175058,1735547441226,-500.0,0.00014499,2]
[347175059,1735547441235,-500.0,0.00014499,2]
[347175060,1735547441245,-500.0,0.00014499,2]
[347175061,1735547441254,-500.0,0.00014499,2]
[347175062,1735547441264,-1000.0,0.00014499,2]
[347175063,1735547441274,-500.0,0.00014499,2]
[347175064,1735547441284,-547.27,0.00014499,2]
[347175065,1735547441293,-500.0,0.00014499,2]
[347175066,1735547441303,-500.0,0.00014499,2]
[347175067,1735547441312,-500.0,0.00014499,2]
[347175068,1735547441322,-500.0,0.00014499,2]
[347175069,1735547441331,-500.0,0.00014499,2]
[347175070,1735547441341,-500.0,0.00014499,2]
[347175071,1735547441350,-500.0,0.00014499,2]
[347175072,1735547441360,-502.55901236,0.00014499,2]
[347175073,1735547441373,-502.55950052,0.00014499,2]
[347175074,1735547441383,-500.0,0.00014499,2]
[347175075,1735547441393,-502.4363569,0.00014499,2]
[347175076,1735547441403,-500.0,0.00014499,2]
[347175077,1735547441412,-501.8886579,0.00014499,2]
[347175078,1735547441421,-500.0,0.00014499,2]
[347175079,1735547441431,-287.92438154,0.00014499,2]
[347175080,1735547441440,-503.98316344,0.00014499,2]
[347175081,1735547441449,-500.0,0.00014499,2]
[347175082,1735547441459,-500.0,0.00014499,2]
[347175083,1735547441469,-500.0,0.00014499,2]
[347175084,1735547441479,-500.0,0.00014499,2]
[347175085,1735547441489,-500.0,0.00014499,2]
[347175086,1735547441498,-500.0,0.00014499,2]
[347175087,1735547441507,-500.0,0.00014499,2]
[347175088,1735547441517,-500.0,0.00014499,2]
[347175089,1735547441526,-502.05393906,0.00014499,2]
[347175090,1735547441535,-500.0,0.00014499,2]
[347175091,1735547441545,-501.44086835,0.00014499,2]
[347175092,1735547441553,-500.0,0.00014499,2]
[347175093,1735547441564,-500.0,0.00014499,2]
[347175094,1735547441574,-500.0,0.00014499,2]
[347175095,1735547441584,-500.0,0.00014499,2]
[347175096,1735547441593,-500.0,0.00014499,2]
[347175097,1735547441602,-311.58733252,0.00014499,2]
[347175098,1735547441612,-500.0,0.00014499,2]
[347175099,1735547441623,-500.0,0.00014499,2]
[347175100,1735547441632,-500.0,0.00014499,2]
[347175101,1735547441641,-500.0,0.00014499,2]
[347175102,1735547441651,-593.05,0.00014499,2]
[347175103,1735547441660,-500.0,0.00014499,2]
[347175104,1735547441669,-686.41,0.00014499,2]
[347175105,1735547441679,-1167.15,0.00014499,2]
[347175106,1735547441688,-548.05,0.00014499,2]
[347175107,1735547441697,-753.4,0.00014499,2]
[347175108,1735547441707,-866.98,0.00014499,2]
[347175109,1735547441716,-500.0,0.00014499,2]
[347175110,1735547441725,-500.0,0.00014499,2]
[347175111,1735547441738,-922.22,0.00014499,2]
[347175112,1735547441747,-552.75,0.00014499,2]
[347175113,1735547441757,-804.36,0.00014499,2]
[347175114,1735547441766,-544.29,0.00014499,2]
[347175115,1735547441776,-1417.15,0.00014499,2]
[347175116,1735547441785,-500.0,0.00014499,2]
[347175117,1735547441794,-580.7,0.00014499,2]
[347175118,1735547441804,-829.93,0.00014499,2]
[347175119,1735547441814,-256.35782624,0.00014499,2]
[347175120,1735547441824,-1602.76,0.00014499,2]
[347175121,1735547441833,-566.77,0.00014499,2]
[347175122,1735547441843,-510.82,0.00014499,2]
[347175123,1735547441852,-500.0,0.00014499,2]
[347175124,1735547441862,-1453.73,0.00014499,2]
[347175125,1735547441872,-589.22,0.00014499,2]
[347175126,1735547441881,-801.89,0.00014499,2]
[347175127,1735547441891,-639.98,0.00014499,2]
[347175128,1735547441900,-620.46,0.00014499,2]
[347175129,1735547441909,-1055.77,0.00014499,2]
[347175130,1735547441918,-500.0,0.00014499,2]
[347175131,1735547441928,-612.51,0.00014499,2]
[347175132,1735547441937,-569.34,0.00014499,2]
[347175133,1735547441946,-595.26,0.00014499,2]
[347175134,1735547441955,-705.9,0.00014499,2]
[347175135,1735547441964,-827.63,0.00014499,2]
[347175136,1735547441974,-500.0,0.00014499,2]
[347175137,1735547441983,-498.829739,0.00014499,2]
[347175138,1735547441992,-1235.22,0.00014499,2]
[347175139,1735547442001,-500.0,0.00014499,2]
[347175140,1735547442010,-2924.0526,0.00014499,2]
[347175141,1735547442019,-500.0,0.00014499,2]
[347175142,1735547442028,-738.25,0.00014499,2]
[347175143,1735547442037,-500.0,0.00014499,2]
[347175144,1735547442046,-2801.45786115,0.000145,2]
[347175145,1735547442055,-1084449.71676122,0.000145,2]
[347175146,1735547442065,-4018933.02470767,0.000145,4]
[347175147,1735547442089,-59956.20008432,0.000145,4]
[347175181,1735547442977,-276.20033484,0.00014355,2]
[347175182,1735547442987,-50823.59026493,0.000145,4]
[347175183,1735547442999,-251756.54638058,0.000145,4]
[347175184,1735547443020,-143331.03494222,0.000145,4]
[347175193,1735547443693,-500.0,0.00014499,2]
[347175194,1735547443709,-500.0,0.00014499,2]
[347175195,1735547443723,-152.51069035,0.00014499,2]
[347175196,1735547443740,-220.60088921,0.00014499,2]
[347175197,1735547443755,-17409.75744359,0.000145,4]
[347175198,1735547443773,-301.62135,0.000145,4]
[347175199,1735547443791,-3039.9,0.000145,4]
[347175200,1735547443808,-1644.5419948,0.000145,4]
[347175201,1735547443826,-522.92412105,0.000145,4]
[347175202,1735547443843,-17476.08560783,0.000145,4]
[347175203,1735547443870,-502.7301505,0.000145,4]
[347175204,1735547443887,-14372.74776098,0.000145,4]
[347175205,1735547443905,-60482.1160889,0.000145,4]
[347175207,1735547445607,-280.81103182,0.00014343,2]
[347175208,1735547445629,-133.39241763,0.00014343,2]
[347175209,1735547445673,-85.79655055,0.00014343,2]
[347175210,1735547445682,-276.20033484,0.00014366,2]
[347175211,1735547445691,-1156.48,0.00014376,2]
[347175212,1735547445700,-500.0,0.00014377,2]
[347175213,1735547445710,-10888.96168939,0.000145,4]
[347175214,1735547445748,-706063.85783493,0.000145,4]
[347175215,1735547445764,-362.45027248,0.000145,4]
[347175216,1735547445775,-360.08234564,0.000145,4]
[347175217,1735547445791,-184465.51052005,0.000145,4]
[347175218,1735547445814,-15217.06621737,0.000145,4]
[347175219,1735547445826,-9449.24033736,0.000145,4]
[347175220,1735547445838,-2427.99713871,0.000145,4]
[347175221,1735547445859,-3120.0000015,0.000145,4]
[347175222,1735547445887,-2513.8728019,0.000145,4]
[347175224,1735547446287,-602.80619902,0.000145,4]
[347175225,1735547667243,11274.93686631,0.00013,2]
[347175226,1735547746172,-250.0,0.00013664,2]
[347175227,1735547746196,-1277.63,0.00013746,2]
[347175228,1735547746217,-5977.771,0.00014276,2]
[347175229,1735547746240,-300.0,0.00014278,2]
[347175230,1735547746263,-499.59,0.00014279,2]
[347175231,1735547746284,-568.34,0.00014279,2]
[347175232,1735547746307,-657.81,0.00014279,2]
[347175233,1735547746331,-875.36,0.00014279,2]
[347175234,1735547746354,-722.01,0.00014279,2]
[347175235,1735547746378,-830.86,0.00014279,2]
[347175236,1735547746400,-995.59,0.00014279,2]
[347175237,1735547746421,-770.85,0.00014279,2]
[347175238,1735547746444,-1358.11,0.00014279,2]
[347175239,1735547746465,-556.5,0.00014279,2]
[347175240,1735547746486,-1535.98,0.00014279,2]
[347175241,1735547746507,-543.15,0.00014279,2]
[347175242,1735547746528,-796.04,0.00014279,2]
[347175243,1735547746550,-1393.16,0.00014279,2]
[347175244,1735547746572,-807.04,0.00014279,2]
[347175245,1735547746592,-564.67,0.00014279,2]
[347175246,1735547746613,-768.48,0.00014279,2]
[347175247,1735547746635,-613.32,0.00014279,2]
[347175248,1735547746657,-594.61,0.00014279,2]
[347175249,1735547746679,-1011.78,0.00014279,2]
[347175250,1735547746700,-500.0,0.00014279,2]
[347175251,1735547746723,-586.99,0.00014279,2]
[347175252,1735547746745,-545.62,0.00014279,2]
[347175253,1735547746768,-570.46,0.00014279,2]
[347175254,1735547746790,-1100.03,0.00014279,2]
[347175255,1735547746813,-793.14,0.00014279,2]
[347175256,1735547746837,-500.0,0.00014279,2]
[347175257,1735547746859,-2803.4134,0.00014299,2]
[347175258,1735547746881,-500.0,0.00014343,2]
[347175259,1735547746904,-500.0,0.00014343,2]
[347175260,1735547746926,-500.0,0.00014343,2]
[347175261,1735547746947,-500.0,0.00014343,2]
[347175262,1735547746968,-500.0,0.00014343,2]
[347175263,1735547746991,-811.38,0.00014343,2]
[347175264,1735547747013,-500.0,0.00014343,2]
[347175265,1735547747035,-500.0,0.00014343,2]
[347175266,1735547747058,-500.0,0.00014343,2]
[347175267,1735547747080,-500.0,0.00014343,2]
[347175268,1735547747102,-500.0,0.00014343,2]
[347175269,1735547747126,-500.0,0.00014343,2]
[347175270,1735547747147,-500.0,0.00014343,2]
[347175271,1735547747169,-500.0,0.00014343,2]
[347175272,1735547747190,-500.0,0.00014343,2]
[347175273,1735547747211,-500.0,0.00014343,2]
[347175274,1735547747233,-500.0,0.00014343,2]
[347175275,1735547747256,-500.0,0.00014343,2]
[347175276,1735547747277,-806.08,0.00014343,2]
[347175277,1735547747298,-500.0,0.00014343,2]
[347175278,1735547747320,-500.0,0.00014343,2]
[347175279,1735547747342,-500.0,0.00014343,2]
[347175280,1735547747363,-500.0,0.00014343,2]
[347175281,1735547747385,-500.0,0.00014343,2]
[347175282,1735547747406,-500.0,0.00014343,2]
[347175283,1735547747427,-850.5,0.00014343,2]
[347175284,1735547747449,-500.0,0.00014343,2]
[347175285,1735547747472,-500.0,0.00014343,2]
[347175286,1735547747495,-500.0,0.00014343,2]
[347175287,1735547747518,-500.0,0.00014343,2]
[347175288,1735547747539,-500.0,0.00014343,2]
[347175289,1735547747560,-500.0,0.00014343,2]
[347175290,1735547747581,-500.0,0.00014343,2]
[347175291,1735547747602,-500.0,0.00014343,2]
[347175292,1735547747623,-500.0,0.00014343,2]
[347175293,1735547747644,-500.0,0.00014343,2]
[347175294,1735547747666,-500.0,0.00014343,2]
[347175295,1735547747688,-500.0,0.00014343,2]
[347175296,1735547747710,-500.0,0.00014343,2]
[347175297,1735547747732,-500.0,0.00014343,2]
[347175298,1735547747753,-500.0,0.00014343,2]
[347175299,1735547747774,-500.0,0.00014343,2]
[347175300,1735547747796,-500.0,0.00014343,2]
[347175301,1735547747817,-500.0,0.00014343,2]
[347175302,1735547747841,-610.73,0.00014343,2]
[347175303,1735547747862,-500.0,0.00014343,2]
[347175304,1735547747888,-500.0,0.00014343,2]
[347175305,1735547747912,-500.0,0.00014343,2]
[347175306,1735547747934,-500.0,0.00014343,2]
[347175307,1735547747956,-500.0,0.00014343,2]
[347175308,1735547747977,-500.0,0.00014343,2]
[347175309,1735547747999,-500.0,0.00014343,2]
[347175310,1735547748020,-503.9073604,0.00014343,2]
[347175311,1735547748045,-500.0,0.00014343,2]
[347175312,1735547748067,-552.26669165,0.00014343,2]
[347175313,1735547748089,-500.0,0.00014343,2]
[347175314,1735547748115,-500.0,0.00014343,2]
[347175315,1735547748141,-570.49,0.00014343,2]
[347175316,1735547748189,-500.0,0.00014343,2]
[347175317,1735547748212,-500.0,0.00014343,2]
[347175318,1735547748235,-507.2,0.00014343,2]
[347175319,1735547748256,-783.47,0.00014343,2]
[347175320,1735547748278,-500.0,0.00014343,2]
[347175321,1735547748300,-500.0,0.00014343,2]
[347175322,1735547748325,-500.0,0.00014343,2]
[347175323,1735547748347,-500.0,0.00014343,2]
[347175324,1735547748370,-500.0,0.00014343,2]
[347175325,1735547748394,-500.0,0.00014343,2]
[347175326,1735547748416,-500.0,0.00014343,2]
[347175327,1735547748439,-500.0,0.00014343,2]
[347175328,1735547748460,-500.0,0.00014343,2]
[347175329,1735547748483,-500.0,0.00014343,2]
[347175330,1735547748666,-500.0,0.00014343,2]
[347175331,1735547748720,-1011.74,0.00014343,2]
[347175332,1735547748767,-521.34,0.00014343,2]
[347175333,1735547748814,-493.3250305,0.00014343,2]
[347175334,1735547748841,-500.0,0.00014343,2]
[347175335,1735547748863,-500.0,0.00014343,2]
[347175336,1735547748887,-500.0,0.00014343,2]
[347175337,1735547748911,-534.10094046,0.00014343,2]
[347175338,1735547748933,-500.0,0.00014343,2]
[347175339,1735547748957,-500.0,0.00014343,2]
[347175340,1735547748978,-500.0,0.00014376,2]
[347175341,1735547749002,-879.28,0.00014376,2]
[347175342,1735547749025,-500.0,0.00014376,2]
[347175343,1735547749052,-500.0,0.00014376,2]
[347175344,1735547749077,-1064.21,0.00014376,2]
[347175345,1735547749104,-809.16,0.00014376,2]
[347175346,1735547749134,-955.6,0.00014376,2]
[347175347,1735547749160,-557.27,0.00014376,2]
[347175348,1735547749192,-500.0,0.00014376,2]
[347175349,1735547749220,-852.18,0.00014376,2]
[347175350,1735547749246,-2756.07,0.00014376,2]
[347175351,1735547749272,-500.0,0.00014376,2]
[347175352,1735547749297,-780.27,0.00014376,2]
[347175353,1735547749322,-1854.33,0.00014376,2]
[347175354,1735547749347,-1437.1,0.00014376,2]
[347175355,1735547749371,-500.0,0.00014376,2]
[347175356,1735547749401,-911.21,0.00014376,2]
[347175357,1735547749425,-3268.58,0.00014376,2]
[347175358,1735547749450,-1100.69,0.00014376,2]
[347175359,1735547749474,-699.65,0.00014376,2]
[347175360,1735547749499,-2622.31,0.00014376,2]
[347175361,1735547749522,-1340.67,0.00014376,2]
[347175362,1735547749545,-500.0,0.00014376,2]
[347175363,1735547749569,-8543.91,0.00014376,2]
[347175364,1735547749589,-500.0,0.00014376,2]
[347175365,1735547749611,-1522.35,0.00014376,2]
[347175366,1735547749634,-5651.15,0.00014376,2]
[347175367,1735547749656,-1156.7,0.00014376,2]
[347175368,1735547749677,-923.02,0.00014376,2]
[347175369,1735547749698,-785.76,0.00014376,2]
[347175370,1735547749720,-572.47,0.00014376,2]
[347175371,1735547749743,-4880.92,0.00014376,2]
[347175372,1735547749765,-941.09,0.00014376,2]
[347175373,1735547749787,-1693.15,0.00014376,2]
[347175374,1735547749808,-3182.59,0.00014376,2]
[347175375,1735547749832,-500.0,0.00014376,2]
[347175376,1735547749853,-806.82,0.00014376,2]
[347175377,1735547749877,-500.0,0.00014376,2]
[347175378,1735547749902,-5687.9,0.00014376,2]
[347175379,1735547749926,-1154.59,0.00014376,2]
[347175380,1735547749950,-1042.18,0.00014376,2]
[347175381,1735547749972,-500.0,0.00014376,2]
[347175382,1735547749996,-3384.61,0.00014376,2]
[347175383,1735547750017,-1928.66,0.00014376,2]
[347175384,1735547750039,-500.0,0.00014376,2]
[347175385,1735547750062,-500.0,0.00014376,2]
[347175386,1735547750085,-833.03,0.00014376,2]
[347175387,1735547750106,-1117.8,0.00014376,2]
[347175388,1735547750129,-501.8,0.00014376,2]
[347175389,1735547750152,-2202.19,0.00014376,2]
[347175390,1735547750175,-605.43,0.00014376,2]
[347175391,1735547750199,-2021.6,0.00014376,2]
[347175392,1735547750223,-500.0,0.00014376,2]
[347175393,1735547750245,-1747.55,0.00014376,2]
[347175394,1735547750268,-568.04,0.00014376,2]
[347175395,1735547750291,-500.0,0.00014376,2]
[347175396,1735547750315,-2135.24,0.00014376,2]
[347175397,1735547750339,-500.0,0.00014376,2]
[347175398,1735547750364,-1050.79,0.00014376,2]
[347175399,1735547750392,-1268.1,0.00014376,2]
[347175400,1735547750418,-2239.97,0.00014376,2]
[347175401,1735547750444,-1638.58,0.00014376,2]
[347175402,1735547750469,-500.0,0.00014376,2]
[347175403,1735547750494,-500.0,0.00014376,2]
[347175404,1735547750516,-1158.41,0.00014376,2]
[347175405,1735547750541,-2055.81,0.00014376,2]
[347175406,1735547750569,-929.305595,0.00014376,2]
[347175407,1735547750591,-2458.17,0.00014376,2]
[347175408,1735547750613,-879.92398,0.00014376,2]
[347175409,1735547750639,-1206.73,0.00014376,2]
[347175410,1735547750662,-873.78,0.00014376,2]
[347175411,1735547750684,-878.8,0.00014376,2]
[347175412,1735547750707,-1404.97,0.00014376,2]
[347175413,1735547750728,-500.0,0.00014376,2]
[347175414,1735547750750,-500.0,0.00014376,2]
[347175415,1735547750772,-2430.13,0.00014376,2]
[347175416,1735547750793,-2287.03,0.00014376,2]
[347175417,1735547750814,-1212.05,0.00014376,2]
[347175418,1735547750841,-664.48,0.00014376,2]
[347175419,1735547750864,-1311.77,0.00014376,2]
[347175420,1735547750888,-1439.73,0.00014376,2]
[347175421,1735547750910,-500.0,0.00014376,2]
[347175422,1735547750932,-500.0,0.00014376,2]
[347175423,1735547750954,-1715.57,0.00014376,2]
[347175424,1735547750977,-3030.22,0.00014377,2]
[347175425,1735547750999,-1781.34,0.00014377,2]
[347175426,1735547751021,-661.31,0.00014377,2]
[347175427,1735547751042,-1069.32,0.00014377,2]
[347175428,1735547751064,-1587.09,0.00014377,2]
[347175429,1735547751085,-743.46,0.00014377,2]
[347175430,1735547751107,-500.0,0.00014377,2]
[347175431,1735547751131,-533.81,0.00014377,2]
[347175432,1735547751155,-702.21,0.00014377,2]
[347175433,1735547751177,-880.75,0.00014377,2]
[347175434,1735547751199,-500.0,0.00014377,2]
[347175435,1735547751222,-1095.69,0.00014377,2]
[347175436,1735547751245,-500.0,0.00014377,2]
[347175437,1735547751268,-1017.13,0.00014377,2]
[347175438,1735547751291,-1374.68,0.00014377,2]
[347175439,1735547751314,-500.0,0.00014377,2]
[347175440,1735547751338,-826.68,0.00014377,2]
[347175441,1735547751361,-735.65,0.00014377,2]
[347175442,1735547751386,-1895.34,0.00014377,2]
[347175443,1735547751409,-2153.96,0.00014377,2]
[347175444,1735547751432,-2188.46,0.00014377,2]
[347175445,1735547751455,-1888.22,0.00014377,2]
[347175446,1735547751477,-815.62,0.00014377,2]
[347175447,1735547751501,-1735.25,0.00014377,2]
[347175448,1735547751526,-4831.49,0.00014377,2]